Cogmind - Beta 14 @@@ ROGUE MODE // 2024.09.24 @ 12:13:20 Player: Zaros426 Result: Self-destructed Performance ------------- Evolutions (2) 1000 Regions Visited (7) 1400 Robots Destroyed (86) 430 Value Destroyed (1732) 1732 Prototype IDs (31) 620 Alien Tech Used (0) 0 Bonus (-359) -359 TOTAL SCORE: 4823 Bonus ------- High Alert Combat Kills 4 Follower Combat Kills 65 Aligned with FarCom 300 Friendly Fire -728 Cogmind --------- Core Integrity 550/550 Matter 270/300 Energy 227/265 System Corruption 0% Temperature Cool (0) Movement Flying (50) Location -8/Materials Parts ------- > --- POWER (1) -------- Improved Ion Engine > --- PROPULSION (4) --- Flying Fortress v7 > --- UTILITY (2) ------ Large Storage Unit > --- WEAPON (4) ------- AWS/Gauss Improved Light Cannon Axe > --- INVENTORY (15) --- Cryofiber Web Advanced Heat Sink Superbattery (1500) High-capacity Matter Pod (127) Experimental Sensor Array Seismic Detector EX Chip 1 EX Chip 2 System Shield System Shield System Shield System Shield Advanced Component Analysis Suite Plasma Cutter Peak State ------------ > --- POWER ------------ Improved Ion Engine > --- PROPULSION ------- Flying Fortress v7 > --- UTILITY ---------- Huge Storage Unit EX Chip 1 > --- WEAPON ----------- AWS/Gauss Improved Light Cannon Axe > --- INVENTORY -------- Cryofiber Web Advanced Heat Sink Large Storage Unit Superbattery High-capacity Matter Pod Experimental Sensor Array Seismic Detector EX Chip 1 EX Chip 2 EX Chip 2 System Shield System Shield System Shield System Shield Advanced Component Analysis Suite Plasma Cutter [Rating: 63] Favorites ----------- Power Improved Ion Engine Engine Improved Ion Engine Propulsion Light Treads Treads Light Treads Wheel Armored Wheel Flight Unit Flying Fortress v7 Utility Shield Generator Device Shield Generator Storage Huge Storage Unit Hackware EX Chip 1 Weapon Heavy Assault Rifle Energy Gun Beam Rifle Energy Cannon Light EM Pulse Cannon Ballistic Gun Heavy Assault Rifle Ballistic Cannon Improved Light Cannon Launcher Grenade Launcher Impact Weapon Flail Slashing Weapon Axe Build | -11 -10 -10 -9 -9 -9 -8 -8 ------- Run | Yrd Mat Min Mat Min Exi Min Mat Slots Evolved 4 | . . . 2 . . . 2 Power . | . . . . . . . . Propulsion 2 | . . . . . . . 2 Utility . | . . . . . . . . Weapon 2 | . . . 2 . . . . Parts Attached 73 | 7 4 3 30 2 23 1 3 Power 5 | 1 . . 1 . 3 . . Engine 5 | 1 . . 1 . 3 . . Core . | . . . . . . . . Reactor . | . . . . . . . . Propulsion 19 | 2 . . 11 . 5 . 1 Treads 14 | 2 . . 8 . 4 . . Leg . | . . . . . . . . Wheel 3 | . . . 2 . 1 . . Hover . | . . . . . . . . Flight 2 | . . . 1 . . . 1 Utility 13 | 2 1 1 4 . 3 . 2 Device 8 | 1 . 1 3 . 3 . . Storage 4 | 1 1 . 1 . . . 1 Processor . | . . . . . . . . Hackware 1 | . . . . . . . 1 Protection . | . . . . . . . . Artifact . | . . . . . . . . Weapon 36 | 2 3 2 14 2 12 1 . Energy Gun 3 | . . . 3 . . . . Energy Cannon 1 | . . . . . 1 . . Ballistic Gun 15 | 2 . . 5 1 6 1 . Ballistic Cannon 12 | . 2 2 6 . 2 . . Launcher 2 | . . . . 1 1 . . Special Weapon . | . . . . . . . . Impact Weapon 1 | . 1 . . . . . . Slashing Weapon 2 | . . . . . 2 . . Piercing Weapon . | . . . . . . . . Special Melee Weapon . | . . . . . . . . Unidentified Prototypes 2 | . . . 2 . . . . Parts Lost 16 | . . . . . 15 1 . Power 1 | . . . . . 1 . . Propulsion 3 | . . . . . 3 . . Utility 4 | . . . . . 3 1 . Weapon 8 | . . . . . 8 . . Highest Loss Streak 8 | . . . . . 8 1 . To Critical Strikes 7 | . . . . . 7 . . Average Slot Usage (%) 95 | . 100 100 99 100 90 78 63 Engine 11 | . 14 14 11 11 11 11 9 Treads 17 | . 28 28 11 11 17 11 . Wheel 5 | . . . 10 11 2 11 . Device 11 | . 14 14 11 11 10 1 . Storage 11 | . 14 14 11 11 11 11 9 Ballistic Gun 20 | . 20 . 14 43 27 11 9 Ballistic Cannon 13 | . 6 27 28 . 4 11 9 Slashing Weapon 1 | . . . . . 4 11 9 Peak Build Rating 63 | 7 10 11 22 21 32 38 63 Average Rating 17 | 6 8 10 19 20 21 36 47 On Entrance 16 | . 7 10 10 21 21 23 36 Naked Turns . | . . . . . . . . Heaviest Build 106 | 15 32 33 104 101 105 106 104 Greatest Support 40 | 40 40 40 40 20 40 12 12 Greatest Overweight (x) 8 | 1 . . 8 8 8 8 8 Average Overweight (x) 4 | . . . 7 7 4 8 8 Largest Inventory Capacity 25 | 8 15 15 25 25 25 25 25 Average Capacity 21 | 7 12 15 24 25 25 25 25 Most Carried 25 | 4 15 15 25 25 25 23 23 Average Carried 19 | 2 9 14 22 25 22 22 19 Final Capacity 25 | 8 15 15 25 25 25 25 15 Final Carried 25 | 4 15 14 25 25 24 23 14 Class Distribution -------------------- 43% | Tank 37% | Mutant 14% | Scavenger-Tank 4% | Gunner Dominant Class ---------------- Mutant | -10/Materials Mutant | -10/Mines Tank | -9/Materials Tank | -9/Mines Scavenger-Tank | -9/Exiles Gunner | -8/Mines Gunner | -8/Materials Resources | -11 -10 -10 -9 -9 -9 -8 -8 ----------- Run | Yrd Mat Min Mat Min Exi Min Mat Matter Collected 2725 | 342 245 148 1059 193 346 392 . Remotely . | . . . . . . . . Salvage Created 2580 | 141 426 98 848 383 184 500 . Parts 166 | 16 34 8 48 25 11 24 . Haulers Intercepted 8 | . 2 . 6 . . . . Recyclers Shooed 1 | . . . . 1 . . . Parts Field Recycled . | . . . . . . . . Retrieved Matter . | . . . . . . . . Parts Self-Destructed . | . . . . . . . . Prevented . | . . . . . . . . Kills | -11 -10 -10 -9 -9 -9 -8 -8 ------- Run | Yrd Mat Min Mat Min Exi Min Mat Combat Hostiles Destroyed 77 | . 10 5 19 21 8 14 . Melee 1 | . . . . . 1 . . Guns 37 | . 10 . 6 9 . 12 . Cannons 18 | . . 3 13 . . 2 . AOE 21 | . . 2 . 12 7 . . Classes Destroyed 12 | 2 7 . 2 1 . . . Worker 2 | . 1 . . . . 1 . Builder 3 | . 1 . 1 1 . . . Tunneler 7 | 4 2 . . 1 . . . Hauler 8 | . 2 . 6 . . . . Recycler 2 | 1 . . . 1 . . . Operator 1 | . 1 . . . . . . Watcher 5 | . 3 . 2 . . . . Swarmer 27 | . 9 3 6 4 . 5 . Grunt 23 | . 1 2 9 3 . 8 . Duelist 3 | . . . 1 1 . 1 . Sentry 3 | . . . 3 . . . . Assembled 20 | . . . . 13 7 . . Best Kill Streak 13 | 4 4 3 5 13 7 4 . Combat Bots Only 13 | . 3 3 4 13 7 3 . Max Kills in Single Turn 5 | 1 2 2 1 5 2 1 . Gunslinging . | . . . . . . . . Exploded 5 | . . 2 . 5 2 . . Melee 1 | . . . . . 1 . . Uniques/NPCs Destroyed 2 | . . . . . 2 . . EX-BIN (-9/Exiles) 8R-AWN (-9/Exiles) Combat | -11 -10 -10 -9 -9 -9 -8 -8 -------- Run | Yrd Mat Min Mat Min Exi Min Mat Hostile Shots Fired 329 | . 58 10 44 52 133 32 . Missed 94 | . 15 1 15 11 37 15 . Damage Taken 2628 | . 425 58 250 449 1247 199 . Core 390 | . 95 9 43 104 110 29 . Absorbed by Shields 678 | . . 14 98 113 430 23 . Core Remaining (%) 62 | 100 . 58 . . . 28 . Volleys Fired 181 | 12 35 9 52 21 35 17 . Largest 4 | 2 2 2 4 4 4 1 . Hottest 173 | 40 70 70 173 92 125 39 . Shots Fired 494 | 24 70 18 162 68 91 61 . Gun 349 | 24 64 . 71 63 83 44 . Cannon 135 | . 6 18 91 . 3 17 . Launcher 10 | . . . . 5 5 . . Special . | . . . . . . . . Kinetic 472 | 24 70 18 153 63 83 61 . Thermal 9 | . . . 9 . . . . Explosive 10 | . . . . 5 5 . . Electromagnetic 3 | . . . . . 3 . . Robot Hit Streak 13 | 7 10 2 7 13 10 5 . Robot Miss Streak 7 | 4 4 3 7 4 4 3 . Penetration Max . | . . . . . . . . Secondary Targets 2 | . 1 . . 1 . . . Max Gunslinging Chain 1 | . 1 . . 1 . . . Autonomous 44 | . . . . . . 44 . Shots Hit Robots 284 | 12 38 3 71 34 85 41 . Core Hits 142 | 6 23 5 30 32 25 21 . Critical Kills . | . . . . . . . . Critical Parts Destroyed . | . . . . . . . . Critical Strikes 8 | . . . 6 . 1 1 . Burn 3 | . . . 3 . . . . Destroy 1 | . . . . . 1 . . Blast 4 | . . . 3 . . 1 . Melee Attacks 34 | . 6 . . . 28 . . Impact 6 | . 6 . . . . . . Slashing 28 | . . . . . 28 . . Piercing . | . . . . . . . . Sneak Attacks 1 | . . . . . 1 . . Combat Hostiles . | . . . . . . . . Follow-up Attacks . | . . . . . . . . Damage Inflicted 6926 | 152 542 253 1455 1293 1858 1373 . Guns 3758 | 152 490 . 625 518 907 1066 . Cannons 1127 | . 52 75 830 . 1 169 . Explosions 1364 | . . 178 . 775 273 138 . Melee 677 | . . . . . 677 . . Ramming . | . . . . . . . . Kinetic 4797 | 152 542 75 1368 518 907 1235 . Thermal 403 | . . 178 87 . . 138 . Explosive 1048 | . . . . 775 273 . . Electromagnetic 1 | . . . . . 1 . . Impact . | . . . . . . . . Slashing 677 | . . . . . 677 . . Piercing . | . . . . . . . . Highest Corruption . | . . . . . . . . Average Corruption . | . . . . . . . . Corruption Purged . | . . . . . . . . Corruption Blocked . | . . . . . . . . Overload Shots . | . . . . . . . . Overflow Damage 192 | . . . 30 76 86 . . Projectiles 30 | . . . 30 . . . . Explosions 76 | . . . . 76 . . . Melee 86 | . . . . . 86 . . Knockbacks 6 | . . . 2 . . 4 . Impact . | . . . . . . . . Kinetic 6 | . . . 2 . . 4 . Secondary . | . . . . . . . . Self-Inflicted Damage 35 | . . . . 35 . . . Shots 2 | . . . . 2 . . . Rammed . | . . . . . . . . Targets Rammed . | . . . . . . . . Kicked . | . . . . . . . . Crushed . | . . . . . . . . Highest Temperature 288 | . 9 36 288 80 149 18 . Average Temperature 60 | . 6 14 83 26 56 7 . Received Heat Transfer 295 | . 24 . 66 75 28 102 . Siege Activations . | . . . . . . . . Robots Corrupted . | . . . . . . . . Combat Hostiles . | . . . . . . . . Parts Fried . | . . . . . . . . Impact Corruptions . | . . . . . . . . Robots Melted . | . . . . . . . . Combat Hostiles . | . . . . . . . . Parts Melted 3 | . . . 3 . . . . Heat Transferred 794 | . . 200 444 . . 150 . Parts Sabotaged . | . . . . . . . . Parts Stolen . | . . . . . . . . Parts Stripped . | . . . . . . . . Power Chain Reactions . | . . . . . . . . Alert | -11 -10 -10 -9 -9 -9 -8 -8 ------- Run | Yrd Mat Min Mat Min Exi Min Mat Peak Influence 436 | 25 153 274 377 284 . 436 91 Initial 147 | . 16 33 37 147 . . 91 Average 147 | 15 89 129 158 243 . 238 91 Maximum Alert Level 2 | . . 1 1 1 . 2 . Low Security (%) 70 | 100 100 80 67 18 . 36 100 Level 1 28 | . . 19 32 81 . 58 . Level 2 . | . . . . . . 4 . Level 3 . | . . . . . . . . Level 4 . | . . . . . . . . Level 5 . | . . . . . . . . High Security . | . . . . . . . . Max Security . | . . . . . . . . Squads Dispatched 9 | . 3 . 5 1 . . . Investigation 8 | . 3 . 4 1 . . . Extermination . | . . . . . . . . Reinforcement 1 | . . . 1 . . . . Assault . | . . . . . . . . Garrison . | . . . . . . . . Intercept . | . . . . . . . . Searches Triggered . | . . . . . . . . Construction Impeded 1 | . . . 1 . . . . Haulers Reinforced . | . . . . . . . . Active Scanning Responses . | . . . . . . . . Cargo Convoy Interrupts . | . . . . . . . . Stealth | -11 -10 -10 -9 -9 -9 -8 -8 --------- Run | Yrd Mat Min Mat Min Exi Min Mat Distress Signals 4 | . 1 . 3 . . . . Communications Jammed . | . . . . . . . . Distress Signals . | . . . . . . . . Times Spotted 91 | . 15 3 28 22 8 15 . Peak Tracking Total 12 | . 3 3 4 12 9 3 . Tactical Retreats 5 | . 2 . 1 1 . 1 . Traps | -11 -10 -10 -9 -9 -9 -8 -8 ------- Run | Yrd Mat Min Mat Min Exi Min Mat Traps Triggered 4 | . 3 . 1 . . . . Indirectly . | . . . . . . . . Trap Hack Attempts . | . . . . . . . . Triggered . | . . . . . . . . Disarmed . | . . . . . . . . Reprogrammed . | . . . . . . . . Reused . | . . . . . . . . Traps Extracted . | . . . . . . . . Installed . | . . . . . . . . Triggered . | . . . . . . . . Machines | -11 -10 -10 -9 -9 -9 -8 -8 ---------- Run | Yrd Mat Min Mat Min Exi Min Mat Machines Disabled 13 | . . 7 . . 4 2 . Max in Single Turn 6 | . . 6 . . 1 1 . Machines Repaired . | . . . . . . . . Machines Dismantled . | . . . . . . . . Machines Sabotaged . | . . . . . . . . Overloaded Fab Kills . | . . . . . . . . Hacking | -11 -10 -10 -9 -9 -9 -8 -8 --------- Run | Yrd Mat Min Mat Min Exi Min Mat Machines Accessed 28 | . 10 . 16 1 1 . . Terminals 21 | . 8 . 12 1 . . . Fabricators . | . . . . . . . . Repair Stations . | . . . . . . . . Recycling Units 4 | . 2 . 2 . . . . Scanalyzers 2 | . . . 2 . . . . Garrison Access . | . . . . . . . . Total Hacks 91 | . 35 . 50 5 1 . . Successful 48 | . 18 . 28 1 1 . . Failed 42 | . 16 . 22 4 . . . Catastrophic 7 | . . . 6 1 . . . Database Lockouts 1 | . 1 . . . . . . Manual 59 | . 21 . 32 5 1 . . Terminals 78 | . 33 . 40 5 . . . Fabricators . | . . . . . . . . Repair Stations . | . . . . . . . . Recycling Units 4 | . 2 . 2 . . . . Scanalyzers 8 | . . . 8 . . . . Garrison Access . | . . . . . . . . Terminal Hacks 21 | . 10 . 9 1 1 . . Record 5 | . 5 . . . . . . Robot Schematic 2 | . . . 1 1 . . . Robot Analysis 5 | . 1 . 4 . . . . Prototype ID Bank 4 | . 3 . 1 . . . . Terminal Index 1 | . . . 1 . . . . Alert Level 1 | . . . 1 . . . . Locate Traps 1 | . . . 1 . . . . Recall Investigation 1 | . 1 . . . . . . Derelict Proto ID Bank 1 | . . . . . 1 . . Fabricator Hacks . | . . . . . . . . Repair Station Hacks . | . . . . . . . . Recycling Unit Hacks . | . . . . . . . . Scanalyzer 8 | . . . 8 . . . . Insert Component 4 | . . . 4 . . . . Analyze 4 | . . . 4 . . . . Garrison Access Hacks . | . . . . . . . . Unauthorized Hacks 19 | . 8 . 11 . . . . Terminals 15 | . 6 . 9 . . . . Operators 2 | . 1 . 1 . . . . Skim 13 | . 5 . 8 . . . . Fabricators . | . . . . . . . . Repair Stations . | . . . . . . . . Recycling Units 4 | . 2 . 2 . . . . Tunnel 4 | . 2 . 2 . . . . Scanalyzers . | . . . . . . . . Garrison Access . | . . . . . . . . Data Cores Recovered . | . . . . . . . . Used . | . . . . . . . . Hacking Detections 23 | . 8 . 14 1 . . . Full Trace Events 3 | . . . 2 1 . . . Feedback Events . | . . . . . . . . Feedback Blocked . | . . . . . . . . Robot Schematics Acquired 2 | . . . 1 1 . . . Robots Built . | . . . . . . . . Authchips . | . . . . . . . . Time . | . . . . . . . . Total Robot Build Rating . | . . . . . . . . Part Schematics Acquired 4 | . . . 4 . . . . Parts Built . | . . . . . . . . Authchips . | . . . . . . . . Time . | . . . . . . . . Total Part Build Rating . | . . . . . . . . Parts Repaired . | . . . . . . . . Time . | . . . . . . . . Parts Recycled . | . . . . . . . . Recycled Matter . | . . . . . . . . Retrieved Matter . | . . . . . . . . Retrieved Components . | . . . . . . . . Parts Scanalyzed 4 | . . . 4 . . . . Part Schematics Acquired 4 | . . . 4 . . . . Parts Damaged . | . . . . . . . . Bothacking | -11 -10 -10 -9 -9 -9 -8 -8 ------------ Run | Yrd Mat Min Mat Min Exi Min Mat Used RIF Installer . | . . . . . . . . Robots Hacked . | . . . . . . . . Non-combat . | . . . . . . . . Combat . | . . . . . . . . Robot Hacks Applied . | . . . . . . . . Relay Couplers Released . | . . . . . . . . Fabnet Peak Effective % . | . . . . . . . . Robots Rewired . | . . . . . . . . Allies Hacked . | . . . . . . . . Hacks Repelled . | . . . . . . . . Allies | -11 -10 -10 -9 -9 -9 -8 -8 -------- Run | Yrd Mat Min Mat Min Exi Min Mat Total Allies 3 | . . 3 . . . . . Largest Group 3 | . . 3 3 . . . . Highest-Rated Group 40 | . . 40 40 . . . . Highest-Rated Ally 16 | . . 16 16 . . . . Total Orders . | . . . . . . . . Ally Attacks 25 | . . . 25 . . . . Total Damage 231 | . . . 231 . . . . Kills 4 | . . . 4 . . . . Allies Corrupted . | . . . . . . . . Allies Melted . | . . . . . . . . Intel | -11 -10 -10 -9 -9 -9 -8 -8 ------- Run | Yrd Mat Min Mat Min Exi Min Mat Robot Analysis Total 5 | . 1 . 4 . . . . Derelict Logs Recovered 2 | . . 1 . 1 . . . Drone Launches . | . . . . . . . . Drone Recoveries . | . . . . . . . . Exploration | -11 -10 -10 -9 -9 -9 -8 -8 ------------- Run | Yrd Mat Min Mat Min Exi Min Mat Turns Passed 8541 | 211 1484 745 2544 648 2484 414 11 Spaces Moved 3601 | 98 788 442 1073 264 753 181 2 Core 9 | 9 . . . . . . . Treads 1853 | 89 788 442 48 3 483 . . Legs . | . . . . . . . . Wheels 1739 | . . . 1025 261 270 181 2 Hover . | . . . . . . . . Flight . | . . . . . . . . Fastest Speed 50 | 50 160 160 160 210 195 210 210 Average Speed 210 | 151 160 160 210 213 297 210 210 Slowest Speed 560 | 160 160 160 560 560 480 210 210 Overloaded Moves . | . . . . . . . . Propulsion Burnouts . | . . . . . . . . Robots Hopped . | . . . . . . . . Cave-ins Triggered . | . . . . . . . . Exploration Rate (%) 56 | 4 98 97 96 49 44 58 2 Regions Visited 7 Branch Regions 4 Pre-discovered Areas 7 | . 3 . 4 . . . . Known Exits Taken 2 | . . . 1 . . 1 . Unknown Exits Taken 5 | 1 1 1 . 1 1 . . Scrap Searched 3 | . . 1 . 1 . 1 . Spaces Dug 5 | . 5 . . . . . . Terrain Destroyed 146 | . 5 37 8 34 17 45 . Melee 5 | . 5 . . . . . . Projectile 44 | . . . 8 . . 36 . AOE 97 | . . 37 . 34 17 9 . Terrain Rammed . | . . . . . . . . Walls Destroyed . | . . . . . . . . Machines Disabled . | . . . . . . . . Actions | -11 -10 -10 -9 -9 -9 -8 -8 --------- Run | Yrd Mat Min Mat Min Exi Min Mat Total 4188 | 133 935 461 1255 305 888 199 12 Wait 172 | 13 81 5 53 19 1 . . Move 3594 | 97 787 441 1072 263 752 180 2 Hop . | . . . . . . . . Pick Up 72 | 4 15 1 24 . 27 1 . Fast Attach 16 | 7 2 . 7 . . . . Attach 21 | . . . . . 17 1 3 Detach 3 | . . . . . 3 . . Swap 36 | . 2 3 23 2 6 . . Drop 59 | . 7 2 24 . 19 . 7 Fire 181 | 12 35 9 52 21 35 17 . Melee 34 | . 6 . . . 28 . . Ram . | . . . . . . . . Kick . | . . . . . . . . Crush . | . . . . . . . . Escape Stasis . | . . . . . . . . Rewire . | . . . . . . . . Trap . | . . . . . . . . Miscellaneous . | . . . . . . . . Route ------- -11/Scrapyard -10/Materials (discovered 4 exits: *Mat x3 / [*Min]) -10/Mines (discovered 2 exits: *Mat x2) -9/Materials (discovered 5 exits: *Mat x3 / *Min x2) -9/Mines (discovered 2 exits: *Mat / *Exi) -9/Exiles -8/Mines -8/Materials History --------- Turn | Location | Event 20 | -11/Scrapyard | Discovered new exit (range 15) 212 | -11/Scrapyard | Entered Materials 308 | -10/Materials | Build established: Mutant 484 | -10/Materials | Discovered new exit (range 16) 700 | -10/Materials | Discovered new exit (range 16) 750 | -10/Materials | Central database locked down 846 | -10/Materials | Discovered new exit (range 16) 974 | -10/Materials | Learned Storage trap positions 981 | -10/Materials | Discovered new exit (range 15) 1033 | -10/Materials | Learned 2 Storage zone layouts 1120 | -10/Materials | Learned 2 Storage zone layouts 1149 | -10/Materials | Learned Materials stockpile data 1187 | -10/Materials | Learned location of Mines (-8) 1235 | -10/Materials | Learned 4 Recycling zone layouts 1294 | -10/Materials | Learned Storage trap positions 1696 | -10/Materials | Entered Mines 1737 | -10/Mines | Discovered new exit (range 5) 1807 | -10/Mines | Assisted by bots powering up and referring to "LRC-V3" 1921 | -10/Mines | Found a damaged Exp. Sensor Array with a note attached 1925 | -10/Mines | Found Prototype Device 1959 | -10/Mines | Discovered new exit (range 15) 2441 | -10/Mines | Entered Materials 2441 | -9/Materials | Accompanied by 3 allies 2441 | -9/Materials | Evolved 2 slots: Weapon x2 2487 | -9/Materials | Identified Exp. Sensor Array 2754 | -9/Materials | Build established: Tank 2978 | -9/Materials | Discovered new exit (range 12) 3370 | -9/Materials | Discovered new exit (range 9) 3714 | -9/Materials | Learned location of Zion (-7) 3759 | -9/Materials | Learned Storage stockpile data 3819 | -9/Materials | Identified exit to Mines 3819 | -9/Materials | Identified exit to Materials 3837 | -9/Materials | Learned Materials stockpile data 3847 | -9/Materials | Learned Storage stockpile data 3869 | -9/Materials | Learned Storage emergency access door positions 3899 | -9/Materials | Learned Materials stockpile data 4474 | -9/Materials | Discovered exit to Materials (range 16) 4985 | -9/Materials | Entered Mines 5096 | -9/Mines | Discovered exit to Materials (range 7) 5487 | -9/Mines | Assembled infested the area 5492 | -9/Mines | Assisted by a Guerilla fighting off Assembled 5534 | -9/Mines | Destroyed 13 combat bots 5620 | -9/Mines | Deemed a non-threat by the Exiles lab entrance 5623 | -9/Mines | Discovered new exit (range 5) 5633 | -9/Mines | Entered Exiles 5686 | -9/Exiles | Met 8R-AWN 5715 | -9/Exiles | Met EX-HEX 5780 | -9/Exiles | Met EX-BIN 5806 | -9/Exiles | Aligned with FarCom system 5808 | -9/Exiles | Given EX-Vault access code 5856 | -9/Exiles | Opened EX-Vault 5875 | -9/Exiles | Found Superbattery 5890 | -9/Exiles | Found AWS/Gauss 5961 | -9/Exiles | Warned to stay clear of 0b10 Research branches 6178 | -9/Exiles | Build established: Scavenger-Tank 7081 | -9/Exiles | Murdered EX-BIN 7082 | -9/Exiles | Attacked by the Exiles 7124 | -9/Exiles | Destroyed 7 combat bots 7191 | -9/Exiles | Lost 5 parts (1p1u3w) 7279 | -9/Exiles | Core integrity fell below 50% 7356 | -9/Exiles | Destroyed 8R-AWN 7376 | -9/Exiles | Lost 8 parts (2n2u4w) 7597 | -9/Exiles | Found Flying Fortress v7 7617 | -9/Exiles | Build established: Mutant 8095 | -9/Exiles | Discovered new exit (range 14) 8117 | -9/Exiles | Stole three prototypes: Flying Fortress v7, Superbattery, AWS/Gauss 8117 | -9/Exiles | Entered Mines 8480 | -8/Mines | Build established: Gunner 8500 | -8/Mines | Discovered exit to Materials (range 10) 8531 | -8/Mines | Entered Materials 8531 | -8/Materials | Evolved 2 slots: Propulsion x2 8542 | -8/Materials | Self-destructed Last Messages --------------- 08492_ Slug penetrates S-10 Pest. 08494_ Slug penetrates Wall. 08496_ Slug penetrates S-10 Pest. 08496_ Destroyed Flight Unit. 08496_ S-10 Pest destroyed. 08499_ Slug penetrates S-10 Pest. 08499_ S-10 Pest destroyed. 08499_ Slug penetrates Earth. 08500_ EXIT=FOUND: MATERIALS 08513_ Acquired 11 matter. PARAMETERS=PROPULSION+2 LOCATION=MATERIALS GOAL=ESCAPE Loading Materials stockpile data (x2)... 08536_ Dropped Arm. Wheel. 08536_ Dropped Lgt. Treads. 08538_ Dropped EX Chip 1. 08538_ Dropped EX Chip 2. 08540_ Discarded EX Chip 1. 08542_ Dropped Huge Storage Unit. Map ----- +----------------------------------------------------+ | | | | | | | | | ?????????????????????????????????? | | ?????????????????????????????????? | | ?????????????????????????????????? | | ?????????????????????????????????? | | ?????????????????????????????????? | | ?????????????????????????????????? | | ?????????????????????????????????? | | ?????????????????????????????????? | | ?????????????????????????????????? | | ?????????????????????????????????? | | ?????????????????????????????????? | | ?????????????????????????????????? | | ?????????????????????????????????? | | ?????????????????????????????????? | | ?????????????????????????????????? | | ?????????????????????????????????? | | ?????????????????????????????????? | | ?????????????????????????#####???? | | ?????????????????????????# #???? | | ?????????????????????????# #???? | | ??????????????????########! #???? | | ??????????????????# !=@= #???? | | ??????????????????# !#! #???? | | ??????????????????# *# #???? | | ??????????????????# """ ?# #???? | | ??????????????????# """ ?# #???? | | ??????????????????# """??# #???? | | ??????????????????#####??# #???? | | ?????????????????????????# #???? | | ?????????????????????????# #???? | | ?????????????????????????# #???? | | ?????????????????????????# #???? | | ?????????????????????????? #???? | | ?????????????????????????? #???? | | ?????????????????????????? #???? | | ?????????????????????????? ????? | | ?????????????????????????????????? | | ?????????????????????????????????? | | ?????????????????????????????????? | | ?????????????????????????????????? | | ?????????????????????????????????? | | ?????????????????????????????????? | | ?????????????????????????????????? | | ?????????????????????????????????? | | ?????????????????????????????????? | | ?????????????????????????????????? | +----------------------------------------------------+ Best States ------------- Heat Dissipation 31 Energy Generation 12 Energy Capacity 265 Matter Stores 300 Matter Capacity 300 Sight Range 16 Terrain Scan Density 10 Evasion (%) 40 Recoil Reduction 2 Offensive Hacking 7 Item Schematics ----------------- Hcp. Battery | -9/Materials | Scanalyzed Arm. Wheel | -9/Materials | Scanalyzed Lrg. Storage Unit | -9/Materials | Scanalyzed Shield Generator | -9/Materials | Scanalyzed Robot Schematics ------------------ M-13 Machinist | -9/Materials | Hacked I-25 Savior | -9/Mines | Hacked Fabricated ------------ Nothing Alien Tech Used ----------------- None Achievements -------------- None Challenges ------------ None Game ------ Seed QuantumTeleporterCorpse Manual? 0 Play Time 00:45:39 Cumulative 118.5 hours Start 2024.09.24 @ 11:26:06 End 2024.09.24 @ 12:13:20 Sessions 1 Manual Loads 0 Difficulty Rogue Special Mode None Game No. 61 Rogue 61 Adventurer 0 Explorer 0 Win Type - Total 0 Types 0/0/0/0/0/0/0/0/0 Lore% 48 Gallery% 65 Achievement% 53 Wizard Run 0 Options --------- Layout 0 ASCII 0 Keyboard 0 Movement Mouse Keybinds 0 Fullscreen 1 Font 24/Smallcaps Map View 183x50 Zoom Use 0% Tactical HUD 1 Map Filters NONE Filters NONE Steam 0 RUN: b72c72bb-caa7-4297-ba20-d516f7502c7e